bitfinex/quotes_BTCUSD_20250331
["timestamp","ask_amount","ask_price","bid_price","bid_amount"]
[1743401140477,4.4e-07,82238.0,82237.0,0.70763266]
[1743401141916,4.4e-07,82238.0,82237.0,0.40763266]
[1743401142133,4.4e-07,82238.0,82237.0,0.40755266]
[1743401142819,4.4e-07,82238.0,82237.0,0.14882783]
[1743401143055,4.4e-07,82238.0,82237.0,0.28726783]
[1743401145216,4.4e-07,82238.0,82237.0,0.40755266]
[1743401147739,0.01135202,82238.0,82237.0,0.40755266]
[1743401149602,4.4e-07,82238.0,82237.0,0.40755266]
[1743401150285,0.01904283,82238.0,82237.0,0.40755266]
[1743401151479,0.01904283,82238.0,82237.0,0.25743266]
[1743401151682,0.01904283,82238.0,82237.0,0.26959166]
[1743401152368,0.03039892,82238.0,82237.0,0.26959166]
[1743401154786,0.03039892,82238.0,82237.0,0.39559166]
[1743401156996,0.05313449,82238.0,82237.0,0.39559166]
[1743401157204,0.05313449,82238.0,82237.0,0.25727166]
[1743401157405,0.0340921,82238.0,82237.0,0.39559166]
[1743401160100,0.0340921,82238.0,82237.0,0.26959166]
[1743401160303,0.0531352,82238.0,82237.0,0.26959166]
[1743401160715,0.0531352,82238.0,82237.0,0.13127166]
[1743401160942,0.0531352,82238.0,82237.0,0.26959166]
[1743401162884,0.03039963,82238.0,82237.0,0.26959166]
[1743401164051,6.3e-07,82238.0,82237.0,0.26959166]
[1743401164171,6.3e-07,82238.0,82237.0,0.72939166]
[1743401164579,0.0753,82272.0,82269.0,0.255259]
[1743401165226,0.01903984,82271.0,82269.0,0.255259]
[1743401165781,0.0195103,82271.0,82270.0,0.012155]
[1743401166227,0.0215103,82271.0,82270.0,0.012155]
[1743401166893,0.2646093,82271.0,82266.0,0.255265]
[1743401167094,0.0215103,82271.0,82268.0,0.243107]
[1743401167294,0.00447046,82271.0,82268.0,0.243107]
[1743401167458,0.00247046,82271.0,82268.0,0.243107]
[1743401168022,0.00447046,82271.0,82268.0,0.243107]
[1743401168142,0.00247046,82271.0,82267.0,0.012155]
[1743401168343,0.02273337,82270.0,82267.0,0.012155]
[1743401168802,0.02273337,82270.0,82267.0,0.255263]
[1743401169369,0.02273337,82269.0,82267.0,0.255263]
[1743401170429,0.02273337,82268.0,82267.0,0.255263]
[1743401171780,0.02473337,82268.0,82267.0,0.255263]
[1743401172009,0.02573337,82268.0,82267.0,0.255263]
[1743401172884,0.243129,82261.0,82253.0,0.255306]
[1743401173088,0.25529,82259.0,82253.0,0.255306]
[1743401173828,0.01904087,82258.0,82254.0,0.255303]
[1743401174064,0.04177424,82258.0,82254.0,0.255303]
[1743401174246,0.255302,82256.0,82253.0,0.001]
[1743401174460,0.255302,82256.0,82251.0,0.243157]
[1743401174698,0.0806,82257.0,82253.0,0.013157]
[1743401175163,0.0806,82257.0,82253.0,0.012157]
[1743401175361,0.02273337,82256.0,82254.0,0.001]
[1743401175705,0.02273337,82256.0,82254.0,0.244146]
[1743401176773,0.02273337,82255.0,82254.0,0.244146]
[1743401176972,0.02273337,82255.0,82254.0,0.256303]
[1743401177178,0.02273337,82255.0,82254.0,0.255303]
[1743401177588,0.03409074,82255.0,82254.0,0.255303]
[1743401178001,0.03409074,82255.0,82254.0,0.256303]
[1743401178716,0.03409074,82255.0,82254.0,0.257303]
[1743401180425,0.0531317,82255.0,82254.0,0.257303]
[1743401185083,0.0531317,82255.0,82254.0,0.002]
[1743401185287,0.0652887,82255.0,82254.0,0.002]
[1743401186829,0.0652887,82255.0,82254.0,0.001]
[1743401186972,0.0652887,82255.0,82254.0,0.002]
[1743401187177,0.04624774,82255.0,82254.0,0.002]
[1743401187398,0.03409074,82255.0,82254.0,0.001]
[1743401187597,0.012157,82253.0,82250.0,0.63152]
[1743401187801,0.012157,82251.0,82250.0,0.63152]
[1743401188255,0.03409074,82255.0,82249.0,0.243162]
[1743401188464,0.012157,82253.0,82246.0,0.012158]
[1743401188661,0.03409074,82255.0,82252.0,0.243155]
[1743401188881,0.01135737,82254.0,82253.0,0.255308]
[1743401189082,0.01135737,82254.0,82252.0,0.243155]
[1743401189283,0.02351437,82254.0,82249.0,0.012158]
[1743401189442,0.02351437,82254.0,82249.0,0.256321]
[1743401189643,0.012157,82253.0,82249.0,0.001]
[1743401189838,0.01135737,82253.0,82249.0,0.256321]
[1743401190060,0.01135737,82253.0,82250.0,0.001]
[1743401190291,0.03039962,82253.0,82250.0,0.001]
[1743401190535,0.03039962,82253.0,82252.0,0.012157]
[1743401191636,0.03039962,82253.0,82252.0,0.014157]
[1743401191877,0.05311974,82253.0,82252.0,0.014157]
[1743401195314,0.08947298,82253.0,82252.0,0.014157]
[1743401195725,0.10764959,82253.0,82252.0,0.014157]
[1743401196892,0.08947298,82253.0,82252.0,0.014157]
[1743401197092,0.08947298,82253.0,82252.0,0.21084183]
[1743401197093,0.07043073,82253.0,82252.0,0.21084183]
[1743401197313,0.03407749,82253.0,82252.0,0.21084183]
[1743401197770,0.03407749,82253.0,82252.0,0.20984183]
[1743401198411,0.03407749,82253.0,82252.0,0.20884183]
[1743401198795,0.03407749,82253.0,82252.0,0.20984183]
[1743401199144,0.03407749,82253.0,82252.0,0.20884183]
[1743401199353,0.07044523,82253.0,82252.0,0.016157]
[1743401199715,0.07044523,82253.0,82252.0,0.013157]
[1743401200114,0.08948619,82253.0,82252.0,0.016157]
[1743401200423,0.10767123,82253.0,82252.0,0.016157]
[1743401201404,0.07130349,82253.0,82252.0,0.016157]
[1743401207588,0.05226253,82253.0,82252.0,0.016157]
[1743401208148,0.03407749,82253.0,82252.0,0.21604183]
[1743401210667,0.0522704,82253.0,82252.0,0.21604183]
[1743401211679,0.07131139,82253.0,82252.0,0.21604183]
[1743401212304,0.05311848,82253.0,82252.0,0.21604183]
[1743401212903,0.05311848,82253.0,82252.0,0.016157]
[1743401217379,0.03407749,82253.0,82252.0,0.016157]
[1743401218731,0.03407749,82253.0,82252.0,0.01858836]
[1743401218921,0.03407749,82253.0,82252.0,0.141557]
[1743401219167,0.03407749,82253.0,82252.0,0.26184183]
[1743401220264,0.05311887,82253.0,82252.0,0.26184183]
[1743401222393,0.05311887,82253.0,82252.0,0.21304183]
[1743401222693,0.05311887,82253.0,82252.0,0.13644183]
[1743401224092,0.012156,82261.0,82255.0,0.012157]
[1743401224296,0.243128,82261.0,82256.0,0.012157]
[1743401224462,0.075,82262.0,82257.0,0.012157]
[1743401224816,0.0190409,82260.0,82258.0,0.012156]
[1743401226821,0.0190409,82260.0,82258.0,0.013156]
[1743401227240,0.375,82262.0,82258.0,0.013156]
[1743401227642,0.375,82262.0,82258.0,0.001]
[1743401227843,0.375,82262.0,82258.0,0.002]
[1743401228044,0.375,82262.0,82258.0,0.001]
[1743401228406,0.375,82262.0,82258.0,0.002]
[1743401228759,0.255284,82261.0,82258.0,0.001]
[1743401228963,0.012156,82261.0,82258.0,0.001]
[1743401229186,0.012156,82261.0,82258.0,0.002]
[1743401229480,0.012156,82259.0,82258.0,0.002]
[1743401229689,0.312156,82259.0,82258.0,0.001]
[1743401230098,0.312156,82259.0,82258.0,0.002]
[1743401230309,0.33119785,82259.0,82258.0,0.002]
[1743401230514,0.33119785,82259.0,82258.0,0.001]
[1743401230736,0.40869785,82259.0,82258.0,0.001]
[1743401230950,0.40869785,82259.0,82258.0,0.002]
[1743401230951,0.4700387,82259.0,82258.0,0.002]
[1743401231155,0.4700387,82259.0,82258.0,0.001]
[1743401231359,0.50543402,82259.0,82258.0,0.001]
[1743401231574,0.48822182,82259.0,82258.0,0.00084054]
[1743401231777,0.012159,82239.0,82232.0,0.01216]
[1743401231986,0.012159,82238.0,82232.0,0.01216]
[1743401232204,0.01216,82233.0,82227.0,0.243228]
[1743401232417,0.01216,82235.0,82228.0,0.255385]
[1743401232634,0.03722804,82237.0,82233.0,0.01216]
[1743401233071,0.03769821,82237.0,82233.0,0.01216]
[1743401233305,0.03769821,82237.0,82234.0,0.255368]
[1743401233516,0.05001443,82237.0,82236.0,0.01216]
[1743401233727,0.03183131,82237.0,82236.0,0.01216]
[1743401235058,0.04998397,82237.0,82236.0,0.01216]
[1743401236423,0.06132626,82237.0,82236.0,0.01216]
[1743401236837,0.08400961,82237.0,82236.0,0.01216]
[1743401237259,0.06496469,82237.0,82236.0,0.01216]
[1743401240367,0.08400951,82237.0,82236.0,0.01216]
[1743401241122,0.243202,82236.0,82231.0,0.01216]
[1743401241354,0.08400951,82237.0,82234.0,0.01216]
[1743401241701,0.06132616,82237.0,82236.0,0.01216]
[1743401242231,0.03183121,82237.0,82236.0,0.255362]
[1743401242455,0.03183121,82237.0,82234.0,0.319007]
[1743401242662,0.243229,82228.0,82223.0,0.84652]
[1743401242865,0.243229,82227.0,82223.0,0.77072]
[1743401243085,0.02946429,82227.0,82224.0,0.012161]
[1743401243305,0.04851062,82227.0,82224.0,0.012161]
[1743401243505,0.30390162,82227.0,82223.0,0.63152]
[1743401243710,0.243235,82225.0,82223.0,0.63152]
[1743401243912,0.012161,82224.0,82223.0,0.63152]
[1743401244124,0.012162,82222.0,82221.0,6e-07]
[1743401245391,0.312162,82222.0,82221.0,6e-07]
[1743401245662,0.33482825,82222.0,82221.0,6e-07]
[1743401246349,0.36429254,82222.0,82221.0,6e-07]
[1743401246967,0.40979254,82222.0,82221.0,6e-07]
[1743401247903,0.012162,82217.0,82213.0,0.0003366]
[1743401248111,0.3,82216.0,82213.0,0.0003366]
[1743401248691,0.3,82216.0,82215.0,0.012163]
[1743401249118,0.03046429,82222.0,82221.0,0.255408]
[1743401249555,0.02946429,82222.0,82221.0,0.255408]
[1743401249752,0.01133242,82222.0,82221.0,0.255408]
[1743401250365,0.05299758,82222.0,82221.0,0.255408]
[1743401250523,0.05399758,82222.0,82221.0,0.255408]
[1743401251010,0.07212945,82222.0,82221.0,0.255408]
[1743401251550,0.07312945,82222.0,82221.0,0.255408]
[1743401251953,0.07112945,82222.0,82221.0,0.255408]
[1743401252388,0.05299758,82222.0,82221.0,0.255408]
[1743401256734,0.07110391,82222.0,82221.0,0.255408]
[1743401257315,0.05205427,82222.0,82221.0,0.255408]
[1743401258391,0.05205427,82222.0,82216.0,0.255421]
[1743401258604,0.243262,82216.0,82213.0,0.1399766]
[1743401258771,0.012162,82220.0,82214.0,0.255427]
[1743401259132,0.02943875,82215.0,82214.0,0.255427]
[1743401259832,0.05205427,82215.0,82214.0,0.255427]
[1743401260370,0.07110452,82215.0,82214.0,0.255427]
[1743401261095,0.05299819,82215.0,82214.0,0.255427]
[1743401261359,0.05299819,82215.0,82214.0,0.330727]
[1743401261891,0.05299819,82215.0,82214.0,0.470767]
[1743401267190,0.03394794,82215.0,82214.0,0.395467]
[1743401267665,0.0521016,82215.0,82214.0,0.395467]
[1743401269236,0.03394794,82215.0,82214.0,0.395467]
[1743401269439,0.03394794,82215.0,82214.0,0.56115183]
[1743401269647,0.03394794,82215.0,82214.0,0.63915183]
[1743401270301,0.05299638,82215.0,82214.0,0.63915183]
[1743401271662,0.05299638,82215.0,82214.0,0.64315183]
[1743401272225,0.05299638,82215.0,82214.0,0.51947183]
[1743401272846,0.07117163,82215.0,82214.0,0.51947183]
[1743401273046,0.07117163,82215.0,82214.0,0.399187]
[1743401274133,0.10752549,82215.0,82214.0,0.399187]
[1743401274759,0.10752549,82215.0,82214.0,0.259427]
[1743401274956,0.10752549,82215.0,82214.0,0.399187]
[1743401275365,0.07117163,82215.0,82214.0,0.399187]
[1743401275565,0.05299638,82215.0,82214.0,0.51947183]
[1743401276796,0.05299638,82215.0,82214.0,0.59747183]
[1743401276996,0.03394794,82215.0,82214.0,0.64287183]
[1743401277613,0.03394794,82215.0,82214.0,0.64087183]
[1743401277797,0.03394794,82215.0,82214.0,0.63887183]
[1743401278155,9.4e-07,82215.0,82214.0,0.64287183]
[1743401278271,0.00047017,82237.0,82236.0,0.255362]
[1743401280109,0.01951574,82237.0,82236.0,0.255362]
[1743401283402,0.01951574,82237.0,82236.0,0.257362]
[1743401284406,0.01951574,82237.0,82236.0,0.258362]
[1743401287190,0.00047017,82237.0,82236.0,0.258362]
[1743401288052,0.00047017,82237.0,82236.0,0.397562]
[1743401290593,0.01951561,82237.0,82236.0,0.003]
[1743401290755,0.0430216,82237.0,82236.0,0.003]
[1743401290965,0.3308626,82237.0,82236.0,0.003]
[1743401291168,0.3308626,82237.0,82236.0,0.01516]
[1743401293405,0.3308626,82237.0,82236.0,0.003]
[1743401293605,0.3308626,82237.0,82236.0,0.01516]
[1743401294985,0.3308626,82237.0,82236.0,0.003]
[1743401295191,0.5862206,82237.0,82236.0,0.003]
[1743401295394,0.3308626,82237.0,82236.0,0.003]
[1743401295600,0.35356355,82237.0,82236.0,0.01516]
[1743401296692,0.03451811,82237.0,82236.0,0.13544483]
[1743401297546,0.03451811,82237.0,82236.0,0.21224483]
[1743401297705,0.01181716,82237.0,82236.0,0.21224483]
[1743401298334,0.01181716,82237.0,82236.0,0.21124483]
[1743401298557,1.6e-07,82237.0,82236.0,0.20924483]
[1743401298760,1.6e-07,82237.0,82236.0,0.26004483]
[1743401298991,1.6e-07,82237.0,82236.0,0.26404483]
[1743401299155,0.01234908,82249.0,82248.0,0.012158]
[1743401299358,0.3,82256.0,82255.0,0.012157]
[1743401299957,0.31904186,82256.0,82255.0,0.012157]
[1743401300159,0.31904186,82256.0,82255.0,0.255303]
[1743401300745,0.03120533,82256.0,82255.0,0.255303]
[1743401302220,0.01904186,82256.0,82255.0,0.255303]
[1743401302419,0.04274457,82256.0,82255.0,0.255303]
[1743401302727,0.04374457,82256.0,82255.0,0.255303]
[1743401303320,0.04174457,82256.0,82255.0,0.255303]
[1743401303515,0.04274457,82256.0,82255.0,0.255303]
[1743401304126,0.04174457,82256.0,82255.0,0.255303]
[1743401304506,0.04174457,82256.0,82255.0,0.256303]
[1743401305311,0.04174457,82256.0,82255.0,0.257303]
[1743401307259,0.02270271,82256.0,82255.0,0.257303]
[1743401308410,0.02270271,82256.0,82255.0,0.395863]
[1743401310255,0.04174424,82256.0,82255.0,0.395863]
[1743401311911,0.05309207,82256.0,82255.0,0.395863]
[1743401312889,0.05309207,82256.0,82255.0,0.257303]
[1743401314341,0.05309207,82256.0,82255.0,0.245146]
[1743401314570,0.05309207,82256.0,82255.0,0.002]
[1743401314772,0.60839207,82256.0,82255.0,0.002]
[1743401316115,0.35309207,82256.0,82255.0,0.002]
[1743401316715,0.35309207,82256.0,82255.0,0.014157]
[1743401317366,0.33405054,82256.0,82255.0,0.014157]
[1743401320408,0.35309228,82256.0,82255.0,0.014157]
[1743401325584,0.05309228,82256.0,82255.0,0.014157]
[1743401327243,0.03405054,82256.0,82255.0,0.014157]
[1743401327620,0.03405054,82256.0,82255.0,0.093857]
[1743401329786,0.03405054,82256.0,82255.0,0.21414183]
[1743401330335,0.05308968,82256.0,82255.0,0.21414183]
[1743401331519,0.05308968,82256.0,82255.0,0.21214183]
[1743401331810,0.05308968,82256.0,82255.0,0.21314183]
[1743401332398,0.05308968,82256.0,82255.0,0.21614183]
[1743401332731,0.05308968,82256.0,82255.0,0.21214183]
[1743401332958,0.05308968,82256.0,82255.0,0.21514183]
[1743401333155,0.05308968,82256.0,82255.0,0.21814183]
[1743401333391,6.8e-07,82256.0,82255.0,0.21814183]
[1743401333696,0.3,82282.0,82281.0,0.255222]
[1743401333892,0.30014108,82282.0,82281.0,0.393542]
[1743401334470,0.00014108,82282.0,82281.0,0.393542]
[1743401335058,0.00114108,82282.0,82281.0,0.393542]
[1743401335233,0.00014108,82282.0,82281.0,0.393542]
[1743401335639,0.00414108,82282.0,82281.0,0.393542]
[1743401335949,0.00314108,82282.0,82281.0,0.393542]
[1743401336155,0.00014108,82282.0,82281.0,0.393542]
[1743401336961,0.01917641,82282.0,82281.0,0.393542]
[1743401337165,0.00014108,82282.0,82281.0,0.393542]
[1743401341599,0.01917651,82282.0,82281.0,0.393542]
[1743401344040,0.01917651,82282.0,82281.0,0.476042]
[1743401346180,0.01148678,82282.0,82281.0,0.476042]
[1743401346788,0.01148678,82282.0,82281.0,0.59632683]
[1743401347724,0.00014108,82282.0,82281.0,0.59632683]
[1743401348131,0.00014108,82282.0,82281.0,0.60032683]
[1743401348375,8e-08,82282.0,82281.0,0.64612683]
[1743401349246,8e-08,82282.0,82281.0,0.64412683]
[1743401349609,8e-08,82282.0,82281.0,0.64612683]
[1743401350795,8e-08,82282.0,82281.0,0.64412683]
[1743401351010,8e-08,82282.0,82281.0,0.66166768]
[1743401351222,8e-08,82282.0,82281.0,0.66766768]
[1743401351423,8e-08,82282.0,82281.0,0.66966768]
[1743401351628,8e-08,82282.0,82281.0,0.66766768]
[1743401351836,8e-08,82282.0,82281.0,1.41196768]
[1743401352082,8e-08,82282.0,82281.0,1.41796768]
[1743401352837,8e-08,82282.0,82281.0,1.40596768]
[1743401353047,8e-08,82282.0,82281.0,1.41196768]
[1743401353715,8e-08,82299.0,82298.0,0.379269]
[1743401353914,8e-08,82299.0,82298.0,0.63847383]
[1743401355086,8e-08,82299.0,82298.0,0.64847383]
[1743401355340,8e-08,82299.0,82298.0,0.64347383]
[1743401355649,8e-08,82299.0,82298.0,0.63847383]
[1743401355861,8e-08,82299.0,82298.0,0.64347383]
[1743401356268,8e-08,82299.0,82298.0,0.64847383]
[1743401357626,8e-08,82299.0,82298.0,1.27967383]
[1743401364357,9.6e-07,82305.0,82304.0,0.333851]
[1743401364581,0.004,82329.0,82328.0,0.255076]
[1743401364811,0.00447125,82329.0,82328.0,0.393636]
[1743401365299,0.0234964,82329.0,82328.0,0.393636]
[1743401367879,0.00447125,82329.0,82328.0,0.393636]
[1743401369172,0.00447125,82329.0,82328.0,0.51392083]
[1743401371146,0.00447125,82329.0,82328.0,0.51492083]
[1743401372114,0.00447125,82329.0,82328.0,0.51692083]
[1743401381582,0.02349442,82329.0,82328.0,0.51692083]
[1743401383601,0.02349442,82329.0,82328.0,0.50192083]
[1743401384730,0.02349442,82329.0,82328.0,0.51406683]
[1743401384849,0.10058954,82344.0,82338.0,0.2429]
[1743401385054,0.01916451,82343.0,82338.0,0.255045]
[1743401385254,0.26205351,82343.0,82338.0,0.255045]
[1743401386036,0.242893,82341.0,82336.0,0.242906]
[1743401386238,0.01916451,82343.0,82339.0,0.1382]
[1743401386455,0.01916451,82343.0,82339.0,0.393242]
[1743401387189,0.00014131,82343.0,82339.0,0.393242]
[1743401389747,0.00014131,82343.0,82342.0,0.255033]
[1743401390335,0.01916311,82343.0,82342.0,0.255033]
[1743401396897,0.01916311,82343.0,82342.0,0.37531783]
[1743401397141,0.01916311,82343.0,82342.0,0.38031783]
[1743401397323,0.00014131,82343.0,82342.0,0.38031783]
[1743401398543,0.00014131,82343.0,82342.0,0.38531783]
[1743401402357,0.00014131,82343.0,82342.0,0.50761783]
[1743401406098,3.1e-07,82343.0,82342.0,0.80761783]
[1743401406866,3.1e-07,82343.0,82342.0,0.80261783]
[1743401407278,3.1e-07,82343.0,82342.0,0.80761783]
[1743401407481,3.1e-07,82343.0,82342.0,0.80261783]
[1743401408803,3.1e-07,82343.0,82342.0,0.80361783]
[1743401409234,3.1e-07,82343.0,82342.0,0.80961783]
[1743401412407,3.1e-07,82343.0,82342.0,0.82863483]
[1743401417845,3.1e-07,82343.0,82342.0,1.45935483]
[1743401418839,3.1e-07,82343.0,82342.0,1.48435483]
[1743401420070,3.1e-07,82343.0,82342.0,1.47235483]
[1743401420277,3.1e-07,82343.0,82342.0,1.47835483]
[1743401422018,3.1e-07,82343.0,82342.0,1.50389568]
[1743401423337,3.1e-07,82343.0,82342.0,1.91719568]
[1743401423515,3.1e-07,82343.0,82342.0,1.91119568]
[1743401423946,3.1e-07,82343.0,82342.0,1.91719568]
[1743401424427,3.1e-07,82343.0,82342.0,1.92319568]
[1743401425110,3.1e-07,82343.0,82342.0,2.05139568]
[1743401425253,3.1e-07,82343.0,82342.0,1.92319568]
[1743401427781,3.1e-07,82343.0,82342.0,1.91819568]
[1743401427934,3.1e-07,82343.0,82342.0,2.05631568]
[1743401428139,3.1e-07,82343.0,82342.0,1.91819568]
[1743401428364,3.1e-07,82343.0,82342.0,2.05631568]
[1743401429058,3.1e-07,82343.0,82342.0,2.05031568]
[1743401429437,3.1e-07,82343.0,82342.0,2.05631568]
[1743401430159,3.1e-07,82343.0,82342.0,2.05031568]
[1743401430356,3.1e-07,82343.0,82342.0,2.05631568]
[1743401431466,3.1e-07,82343.0,82342.0,1.87865483]
[1743401431555,3.1e-07,82343.0,82342.0,2.01677483]
[1743401432130,3.1e-07,82343.0,82342.0,2.01077483]
[1743401432565,3.1e-07,82343.0,82342.0,2.01677483]
[1743401432849,3.1e-07,82343.0,82342.0,1.89447483]
[1743401433063,3.1e-07,82343.0,82342.0,1.75035483]
[1743401433257,3.1e-07,82343.0,82342.0,1.88847483]
[1743401433464,3.1e-07,82343.0,82342.0,1.89447483]
[1743401433673,3.1e-07,82343.0,82342.0,1.88847483]
[1743401433879,3.1e-07,82343.0,82342.0,1.88247483]
[1743401434220,3.1e-07,82343.0,82342.0,1.89447483]
[1743401434459,0.05463105,82352.0,82351.0,0.555005]
[1743401434658,0.05463105,82352.0,82351.0,0.67528983]
[1743401436246,0.0517,82359.0,82358.0,0.254984]
[1743401436385,0.0517,82359.0,82358.0,0.393104]
[1743401437491,0.1309,82359.0,82358.0,0.397104]
[1743401438797,0.1309,82359.0,82358.0,0.401104]
[1743401440079,0.004,82359.0,82358.0,0.401104]
[1743401440715,0.004,82359.0,82358.0,0.52138883]
[1743401441911,0.02301544,82359.0,82358.0,0.52138883]
[1743401446478,0.02301544,82359.0,82358.0,0.401104]
[1743401447183,0.004,82359.0,82358.0,0.401104]
[1743401450405,0.02301545,82359.0,82358.0,0.401104]
[1743401456223,0.02301545,82359.0,82358.0,0.52138883]
[1743401456539,0.004,82359.0,82358.0,0.52138883]
[1743401457605,0.004,82359.0,82358.0,0.51738883]
[1743401457813,0.004,82359.0,82358.0,0.52338883]
[1743401458226,0.004,82359.0,82358.0,0.51938883]
[1743401458410,0.004,82359.0,82358.0,0.52538883]
[1743401465341,0.004,82359.0,82358.0,0.82538883]
[1743401465730,0.004,82359.0,82358.0,0.90618883]
[1743401466213,0.01901441,82369.0,82368.0,0.254952]
[1743401466333,0.01915559,82369.0,82368.0,0.37523683]
[1743401467107,0.01915559,82369.0,82368.0,0.38716874]
[1743401467314,0.00014118,82369.0,82368.0,0.38716874]
[1743401467863,0.00014118,82369.0,82368.0,0.39216874]
[1743401468564,0.00014118,82369.0,82368.0,0.38023683]
[1743401469117,0.00014118,82369.0,82368.0,0.38523683]
[1743401470447,0.01915444,82369.0,82368.0,0.38523683]
[1743401470671,0.01915444,82369.0,82368.0,1.01587683]
[1743401477313,0.00014118,82369.0,82368.0,1.01587683]
[1743401478571,0.00014118,82369.0,82368.0,1.09817683]
[1743401479176,1.8e-07,82369.0,82368.0,1.39817683]
[1743401479837,1.8e-07,82369.0,82368.0,1.39317683]
[1743401480440,1.8e-07,82369.0,82368.0,1.39917683]
[1743401480802,1.8e-07,82369.0,82368.0,1.4023781]
[1743401481532,1.8e-07,82369.0,82368.0,1.3973781]
[1743401481766,1.8e-07,82369.0,82368.0,1.4033781]
[1743401482118,1.8e-07,82369.0,82368.0,1.4093781]
[1743401483292,1.8e-07,82369.0,82368.0,1.45595683]
[1743401485671,1.8e-07,82369.0,82368.0,1.44995683]
[1743401486503,1.8e-07,82369.0,82368.0,0.897592]
[1743401486707,1.8e-07,82369.0,82368.0,1.035672]
[1743401487693,1.8e-07,82369.0,82368.0,1.029672]
[1743401488141,1.8e-07,82369.0,82368.0,1.035672]
[1743401488321,1.8e-07,82369.0,82368.0,1.023672]
[1743401488525,1.8e-07,82369.0,82368.0,1.029672]
[1743401488737,1.8e-07,82369.0,82368.0,1.035672]
[1743401489084,1.8e-07,82369.0,82368.0,1.029672]
[1743401489280,1.8e-07,82369.0,82368.0,1.035672]
[1743401490378,0.01901379,82369.0,82368.0,1.335672]
[1743401491699,0.01901379,82369.0,82368.0,1.45595683]
[1743401491917,0.01901379,82369.0,82368.0,1.53885683]
[1743401494150,0.0479,82390.0,82389.0,0.012137]
[1743401494350,0.06017457,82390.0,82389.0,0.012137]
[1743401494693,0.07918592,82390.0,82389.0,0.012137]
[1743401495066,0.06017457,82390.0,82389.0,0.012137]
[1743401495767,0.06017457,82390.0,82389.0,0.013137]
[1743401496719,0.06022599,82390.0,82389.0,0.013137]
[1743401502978,0.07923698,82390.0,82389.0,0.013137]
[1743401505178,0.07923698,82390.0,82389.0,0.014137]
[1743401506453,0.03133698,82390.0,82389.0,0.014137]
[1743401507236,0.01232599,82390.0,82389.0,0.014137]
[1743401510518,0.03133726,82390.0,82389.0,0.014137]
[1743401510854,0.03133726,82390.0,82389.0,0.002]
[1743401511561,0.03133726,82390.0,82389.0,0.014137]
[1743401513177,0.03133726,82390.0,82389.0,0.002]
[1743401514517,0.03133726,82390.0,82389.0,0.014137]
[1743401517311,0.01232599,82390.0,82389.0,0.014137]
[1743401520273,0.03133705,82390.0,82389.0,0.014137]
[1743401521549,0.03133705,82390.0,82389.0,0.002]
[1743401522566,0.03133705,82390.0,82389.0,0.014137]
[1743401527326,0.01232599,82390.0,82389.0,0.014137]
[1743401528566,0.01232599,82390.0,82389.0,0.002]
[1743401529421,0.01232599,82390.0,82389.0,0.014137]
[1743401530253,0.03133646,82390.0,82389.0,0.014137]
[1743401530687,0.03133646,82390.0,82389.0,0.002]
[1743401531516,0.03133646,82390.0,82389.0,0.014137]
[1743401532315,0.03133646,82390.0,82389.0,0.002]
[1743401533405,0.03133646,82390.0,82389.0,0.014137]
[1743401534430,0.03133646,82390.0,82389.0,0.002]
[1743401537205,0.01232599,82390.0,82389.0,0.002]
[1743401540428,0.03133698,82390.0,82389.0,0.002]
[1743401541626,0.27408398,82390.0,82389.0,0.002]
[1743401542008,0.03133698,82390.0,82389.0,0.014137]
[1743401542962,0.03133698,82390.0,82389.0,0.002]
[1743401545006,0.03133698,82390.0,82389.0,0.014137]
[1743401547230,0.01232599,82390.0,82389.0,0.014137]
[1743401548475,0.01232599,82390.0,82389.0,0.002]
[1743401550220,0.03133671,82390.0,82389.0,0.002]
[1743401552482,0.36338988,82390.0,82389.0,0.002]
[1743401552692,0.35710737,82390.0,82389.0,0.002]
[1743401552888,0.32160898,82390.0,82389.0,0.002]
[1743401553309,0.32160898,82390.0,82389.0,0.001]
[1743401553484,0.242787,82377.0,82371.0,0.01214]
[1743401554312,0.01901396,82376.0,82371.0,0.01214]
[1743401554514,0.242792,82375.0,82370.0,0.8458]
[1743401554911,0.242797,82374.0,82370.0,0.8458]
[1743401555210,0.242797,82374.0,82371.0,0.001]
[1743401555404,0.242793,82375.0,82371.0,0.001]
[1743401555611,0.242798,82373.0,82371.0,0.001]
[1743401555812,0.242809,82370.0,82365.0,0.0772]
[1743401556334,0.254949,82369.0,82360.0,0.0772]
[1743401556540,0.13310474,82370.0,82360.0,0.0772]
[1743401557167,0.01901644,82368.0,82365.0,0.006]
[1743401557409,0.242809,82369.0,82365.0,0.003]
[1743401558002,0.242818,82366.0,82365.0,0.003]
[1743401558161,0.242801,82372.0,82363.0,0.242825]
[1743401558369,0.242812,82368.0,82360.0,0.0802]
[1743401558567,0.242812,82368.0,82360.0,0.0832]
[1743401558844,0.012141,82365.0,82360.0,0.0832]
[1743401558964,0.242825,82364.0,82360.0,0.0832]
[1743401559162,0.242825,82364.0,82360.0,0.0802]
[1743401559611,0.242825,82364.0,82363.0,0.001]
[1743401559991,0.242825,82364.0,82360.0,0.0772]
[1743401559992,0.24287639,82364.0,82360.0,0.0792]
[1743401560405,0.01906821,82364.0,82361.0,0.012141]
[1743401560821,0.01906821,82364.0,82363.0,0.012141]
[1743401561901,0.01906821,82364.0,82363.0,0.256968]
[1743401562313,0.01906821,82364.0,82363.0,0.002]
[1743401562446,0.03120921,82364.0,82363.0,0.002]
[1743401562850,0.04329738,82364.0,82363.0,0.002]
[1743401563717,0.07927727,82364.0,82363.0,0.005]
[1743401563897,0.44071812,82364.0,82363.0,0.005]
[1743401564463,0.48493823,82364.0,82363.0,0.005]
[1743401564980,0.48493823,82364.0,82363.0,0.002]
[1743401565353,0.012143,82348.0,82340.0,0.255038]
[1743401565589,0.255013,82349.0,82341.0,0.012144]
[1743401565744,0.242875,82347.0,82341.0,0.012144]
[1743401566247,0.242875,82347.0,82340.0,0.255038]
[1743401567135,0.242875,82347.0,82341.0,0.002]
[1743401567337,0.242875,82347.0,82341.0,0.001]
[1743401567945,0.01902098,82348.0,82342.0,0.012144]
[1743401569002,0.012143,82346.0,82341.0,0.001]
[1743401569221,0.242886,82344.0,82341.0,0.001]
[1743401569383,0.242877,82346.0,82341.0,0.001]
[1743401569591,0.242877,82346.0,82342.0,0.001]
[1743401569793,0.01902098,82348.0,82342.0,0.001]
[1743401569994,0.242874,82347.0,82342.0,0.001]